[Event "Championnat d'Europe de Blitz"]
[Date "2024.12.09"]
[White "Pancevski, Filip"]
[Black "Andonovski, Ljubisa"]
[WhiteElo "2420"]
[BlackElo "2253"]
[Round "5.37"]
[Result "1-0"]
[TimeControl "180+2"]

1. e4 {[%clk 00:03:02]} Nc6 {[%emt 00:00:10] [%clk 00:02:55]} 2. Nc3 {[%emt
00:00:09] [%clk 00:02:56]} e5 {[%emt 00:00:03] [%clk 00:02:53]} 3. g3 {[%emt
00:00:06] [%clk 00:02:52]} Bc5 {[%emt 00:00:05] [%clk 00:02:50]} 4. Bg2 {[%emt
00:00:01] [%clk 00:02:53]} d6 {[%clk 00:02:51]} 5. d3 {[%emt 00:00:01] [%clk
00:02:54]} Nge7 {[%emt 00:00:12] [%clk 00:02:40]} 6. Nge2 {[%emt 00:00:07] [%clk
00:02:49]} h5 {[%emt 00:00:06] [%clk 00:02:36]} 7. h3 {[%emt 00:00:02] [%clk
00:02:50]} h4 {[%emt 00:00:08] [%clk 00:02:30]} 8. g4 {[%clk 00:02:51]} Ng6
{[%emt 00:00:01] [%clk 00:02:31]} 9. Be3 {[%clk 00:02:52]} O-O {[%emt 00:00:15]
[%clk 00:02:18]} 10. Qd2 {[%emt 00:00:02] [%clk 00:02:52]} Bxe3 {[%emt 00:00:11]
[%clk 00:02:08]} 11. fxe3 {[%emt 00:00:03] [%clk 00:02:51]} Be6 {[%emt 00:00:21]
[%clk 00:01:49]} 12. O-O {[%emt 00:00:06] [%clk 00:02:48]} Qg5 {[%emt 00:00:06]
[%clk 00:01:44]} 13. Kh1 {[%emt 00:00:08] [%clk 00:02:43]} Nd4 {[%emt 00:00:10]
[%clk 00:01:37]} 14. Ng1 {[%emt 00:00:03] [%clk 00:02:42]} c6 {[%emt 00:00:29]
[%clk 00:01:10]} 15. Qf2 {[%emt 00:00:32] [%clk 00:02:12]} Nb5 {[%emt 00:00:06]
[%clk 00:01:06]} 16. Nf3 {[%emt 00:00:05] [%clk 00:02:09]} Qh6 {[%emt 00:00:07]
[%clk 00:01:01]} 17. Nxb5 {[%emt 00:00:35] [%clk 00:01:36]} cxb5 {[%emt
00:00:01] [%clk 00:01:02]} 18. a3 {[%emt 00:00:02] [%clk 00:01:36]} Rac8 {[%emt
00:00:02] [%clk 00:01:01]} 19. c3 {[%emt 00:00:05] [%clk 00:01:33]} a5 {[%emt
00:00:02] [%clk 00:01:01]} 20. d4 {[%emt 00:00:02] [%clk 00:01:33]} Bc4 {[%emt
00:00:06] [%clk 00:00:57]} 21. Rg1 {[%emt 00:00:03] [%clk 00:01:32]} f6 {[%emt
00:00:07] [%clk 00:00:52]} 22. Rae1 {[%emt 00:00:17] [%clk 00:01:17]} d5 {[%emt
00:00:04] [%clk 00:00:50]} 23. Nd2 {[%emt 00:00:12] [%clk 00:01:07]} dxe4 {[%emt
00:00:05] [%clk 00:00:46]} 24. Bxe4 {[%emt 00:00:09] [%clk 00:01:00]} Bf7 {[%emt
00:00:16] [%clk 00:00:32]} 25. Bxb7 {[%emt 00:00:04] [%clk 00:01:00]} Rc7 {[%emt
00:00:05] [%clk 00:00:29]} 26. Be4 {[%emt 00:00:06] [%clk 00:00:55]} b4 {[%emt
00:00:02] [%clk 00:00:30]} 27. axb4 {[%emt 00:00:19] [%clk 00:00:38]} axb4
{[%clk 00:00:31]} 28. cxb4 {[%emt 00:00:09] [%clk 00:00:31]} exd4 {[%emt
00:00:06] [%clk 00:00:26]} 29. exd4 {[%emt 00:00:01] [%clk 00:00:32]} Rb8 {[%emt
00:00:01] [%clk 00:00:27]} 30. Rc1 {[%emt 00:00:06] [%clk 00:00:28]} Rxc1 {[%emt
00:00:20] [%clk 00:00:09]} 31. Rxc1 {[%clk 00:00:29]} Rxb4 {[%emt 00:00:01]
[%clk 00:00:09]} 32. Rc8+ {[%emt 00:00:05] [%clk 00:00:27]} Kh7 {[%clk
00:00:10]} 33. Nf3 {[%emt 00:00:05] [%clk 00:00:24]} 1-0

[Site "Europe Echecs"]

[Event "Championnat d'Europe de Blitz"]
[Date "2024.12.09"]
[White "Guliyev, Namig"]
[Black "Oliinyk, Serafym"]
[WhiteElo "2484"]
[BlackElo "2207"]
[Round "5.38"]
[Result "1-0"]
[TimeControl "180+2"]

1. e4 {[%emt 00:00:02] [%clk 00:03:03]} e5 {[%clk 00:03:04]} 2. Nf3 {[%clk
00:03:04]} Nc6 {[%clk 00:03:05]} 3. Bb5 {[%emt 00:00:01] [%clk 00:03:05]} a6
{[%emt 00:00:01] [%clk 00:03:06]} 4. Ba4 {[%clk 00:03:06]} Nf6 {[%clk 00:03:07]}
5. O-O {[%emt 00:00:01] [%clk 00:03:06]} Be7 {[%clk 00:03:09]} 6. Re1 {[%emt
00:00:01] [%clk 00:03:07]} b5 {[%emt 00:00:01] [%clk 00:03:10]} 7. Bb3 {[%emt
00:00:01] [%clk 00:03:08]} O-O {[%emt 00:00:01] [%clk 00:03:10]} 8. d4 {[%emt
00:00:01] [%clk 00:03:09]} Nxd4 {[%emt 00:00:04] [%clk 00:03:08]} 9. Nxd4 {[%emt
00:00:02] [%clk 00:03:09]} exd4 {[%clk 00:03:09]} 10. e5 {[%emt 00:00:01] [%clk
00:03:09]} Ne8 {[%emt 00:00:02] [%clk 00:03:08]} 11. Qxd4 {[%emt 00:00:02] [%clk
00:03:10]} c5 {[%emt 00:00:10] [%clk 00:03:00]} 12. Qe4 {[%emt 00:00:02] [%clk
00:03:10]} Rb8 {[%emt 00:00:08] [%clk 00:02:54]} 13. c4 {[%emt 00:00:02] [%clk
00:03:10]} Bb7 {[%emt 00:00:41] [%clk 00:02:16]} 14. Qg4 {[%emt 00:00:03] [%clk
00:03:09]} d5 {[%emt 00:00:49] [%clk 00:01:30]} 15. cxd5 {[%emt 00:00:07] [%clk
00:03:03]} c4 {[%emt 00:00:17] [%clk 00:01:15]} 16. d6 {[%emt 00:00:48] [%clk
00:02:17]} Bxd6 {[%emt 00:00:06] [%clk 00:01:11]} 17. exd6 {[%emt 00:00:02]
[%clk 00:02:17]} cxb3 {[%clk 00:01:12]} 18. Bg5 {[%emt 00:00:02] [%clk
00:02:17]} f6 {[%emt 00:00:30] [%clk 00:00:44]} 19. Bf4 {[%emt 00:00:04] [%clk
00:02:15]} f5 {[%emt 00:00:35] [%clk 00:00:12]} 20. Qd1 {[%emt 00:00:09] [%clk
00:02:08]} Nf6 {[%emt 00:00:06] [%clk 00:00:09]} 21. axb3 {[%emt 00:00:07] [%clk
00:02:02]} Qd7 {[%emt 00:00:03] [%clk 00:00:07]} 22. Nc3 {[%emt 00:00:07] [%clk
00:01:57]} Rbd8 {[%emt 00:00:01] [%clk 00:00:08]} 23. Qd4 {[%emt 00:00:07] [%clk
00:01:51]} Ne4 {[%emt 00:00:06] [%clk 00:00:04]} 24. f3 {[%emt 00:00:04] [%clk
00:01:48]} Nxc3 {[%emt 00:00:02] [%clk 00:00:04]} 25. bxc3 {[%emt 00:00:02]
[%clk 00:01:49]} Rf7 {[%emt 00:00:03] [%clk 00:00:03]} 26. c4 {[%emt 00:00:12]
[%clk 00:01:39]} h6 {[%emt 00:00:02] [%clk 00:00:04]} 27. c5 {[%emt 00:00:05]
[%clk 00:01:35]} Qc6 {[%emt 00:00:03] [%clk 00:00:04]} 28. Re6 {[%emt 00:00:14]
[%clk 00:01:23]} Bc8 {[%emt 00:00:03] [%clk 00:00:04]} 29. Re5 {[%emt 00:00:01]
[%clk 00:01:23]} Kh7 {[%emt 00:00:03] [%clk 00:00:03]} 30. b4 {[%emt 00:00:02]
[%clk 00:01:22]} Bb7 {[%emt 00:00:03] [%clk 00:00:03]} 31. Rae1 {[%emt 00:00:04]
[%clk 00:01:20]} Rdd7 {[%emt 00:00:01] [%clk 00:00:04]} 32. Re6 {[%emt 00:00:07]
[%clk 00:01:15]} a5 {[%emt 00:00:03] [%clk 00:00:03]} 33. Bxh6 {[%emt 00:00:06]
[%clk 00:01:11]} gxh6 {[%emt 00:00:02] [%clk 00:00:03]} 34. Qh4 {[%emt 00:00:01]
[%clk 00:01:11]} Kg8 {[%emt 00:00:03] [%clk 00:00:03]} 35. Qxh6 {[%emt 00:00:10]
[%clk 00:01:02]} Rg7 {[%emt 00:00:02] [%clk 00:00:03]} 36. Re8+ {[%emt 00:00:02]
[%clk 00:01:02]} Kf7 {[%emt 00:00:02] [%clk 00:00:04]} 37. Qe6# {[%emt
00:00:07]} 1-0

[Site "Europe Echecs"]

[Event "Championnat d'Europe de Blitz"]
[Date "2024.12.09"]
[White "Rodriguez Fontecha, Marcos"]
[Black "Zajic, Milan"]
[WhiteElo "2278"]
[BlackElo "2392"]
[Round "5.39"]
[Result "0-1"]
[TimeControl "180+2"]

1. Nf3 {[%emt 00:03:15] [%clk 00:03:01]} d5 {[%emt 00:00:01] [%clk 00:03:03]} 2.
g3 {[%emt 00:00:05] [%clk 00:02:58]} Nf6 {[%emt 00:00:01] [%clk 00:03:04]} 3.
Bg2 {[%clk 00:02:59]} c6 {[%emt 00:00:01] [%clk 00:03:05]} 4. O-O {[%emt
00:00:07] [%clk 00:02:54]} Bg4 {[%emt 00:00:02] [%clk 00:03:05]} 5. c4 {[%emt
00:00:03] [%clk 00:02:54]} e6 {[%emt 00:00:17] [%clk 00:02:50]} 6. Qb3 {[%emt
00:00:02] [%clk 00:02:54]} Qb6 {[%emt 00:00:02] [%clk 00:02:50]} 7. d3 {[%emt
00:00:03] [%clk 00:02:53]} Nbd7 {[%emt 00:00:15] [%clk 00:02:37]} 8. Be3 {[%emt
00:00:09] [%clk 00:02:45]} Bc5 {[%emt 00:00:02] [%clk 00:02:37]} 9. d4 {[%emt
00:00:13] [%clk 00:02:35]} Be7 {[%emt 00:00:07] [%clk 00:02:32]} 10. c5 {[%emt
00:00:06] [%clk 00:02:31]} Qxb3 {[%emt 00:00:09] [%clk 00:02:26]} 11. axb3
{[%emt 00:00:02] [%clk 00:02:31]} O-O {[%emt 00:00:04] [%clk 00:02:23]} 12. b4
{[%emt 00:00:05] [%clk 00:02:28]} a6 {[%emt 00:00:14] [%clk 00:02:12]} 13. Nbd2
{[%emt 00:00:30] [%clk 00:02:00]} Bd8 {[%emt 00:00:33] [%clk 00:01:41]} 14. Bf4
{[%emt 00:00:07] [%clk 00:01:55]} Rc8 {[%emt 00:00:16] [%clk 00:01:27]} 15. Nb3
{[%emt 00:00:11] [%clk 00:01:46]} Bc7 {[%emt 00:00:01] [%clk 00:01:28]} 16. Na5
{[%emt 00:00:02] [%clk 00:01:46]} Bxf4 {[%emt 00:00:03] [%clk 00:01:28]} 17.
gxf4 {[%emt 00:00:02] [%clk 00:01:46]} Rc7 {[%emt 00:00:08] [%clk 00:01:22]} 18.
e3 {[%emt 00:00:07] [%clk 00:01:41]} Ne4 {[%emt 00:00:24] [%clk 00:01:01]} 19.
Rfc1 {[%emt 00:00:42] [%clk 00:01:01]} f5 {[%emt 00:00:17] [%clk 00:00:46]} 20.
Ne5 {[%emt 00:00:17] [%clk 00:00:46]} Nxe5 {[%emt 00:00:02] [%clk 00:00:46]} 21.
dxe5 {[%emt 00:00:12] [%clk 00:00:36]} Nd2 {[%emt 00:00:04] [%clk 00:00:45]} 22.
Rc2 {[%emt 00:00:08] [%clk 00:00:29]} Nf3+ {[%emt 00:00:04] [%clk 00:00:43]} 23.
Kh1 {[%emt 00:00:04] [%clk 00:00:27]} g5 {[%emt 00:00:19] [%clk 00:00:26]} 24.
Nb3 {[%emt 00:00:13] [%clk 00:00:17]} gxf4 {[%emt 00:00:02] [%clk 00:00:26]} 25.
exf4 {[%clk 00:00:18]} Rg7 {[%emt 00:00:02] [%clk 00:00:26]} 26. Rc3 {[%emt
00:00:02] [%clk 00:00:18]} Nh4 {[%emt 00:00:01] [%clk 00:00:26]} 27. Rg3 {[%emt
00:00:03] [%clk 00:00:18]} Ng6 {[%emt 00:00:02] [%clk 00:00:26]} 28. f3 {[%emt
00:00:06] [%clk 00:00:14]} Bh5 {[%clk 00:00:27]} 29. Rg1 {[%emt 00:00:06] [%clk
00:00:10]} Nxf4 {[%emt 00:00:02] [%clk 00:00:27]} 30. Bf1 {[%emt 00:00:01] [%clk
00:00:10]} Rxg3 {[%emt 00:00:07] [%clk 00:00:23]} 31. Rxg3+ {[%emt 00:00:02]
[%clk 00:00:11]} Kf7 {[%emt 00:00:02] [%clk 00:00:23]} 32. Nd4 {[%emt 00:00:02]
[%clk 00:00:11]} Rg8 {[%emt 00:00:13] [%clk 00:00:12]} 33. Kg1 {[%emt 00:00:01]
[%clk 00:00:10]} Ng6 {[%emt 00:00:04] [%clk 00:00:11]} 34. f4 {[%emt 00:00:07]
[%clk 00:00:05]} Nxf4 {[%emt 00:00:02] [%clk 00:00:11]} 35. Rxg8 {[%clk
00:00:06]} Kxg8 {[%emt 00:00:01] [%clk 00:00:12]} 36. Nxc6 {[%emt 00:00:05]
[%clk 00:00:03]} bxc6 {[%emt 00:00:02] [%clk 00:00:13]} 37. Bxa6 {[%clk
00:00:05]} d4 {[%emt 00:00:01] [%clk 00:00:14]} 38. Bc4 {[%emt 00:00:02] [%clk
00:00:04]} d3 {[%emt 00:00:03] [%clk 00:00:12]} 39. b5 {[%emt 00:00:02] [%clk
00:00:05]} d2 {[%emt 00:00:03] [%clk 00:00:12]} 40. Bb3 {[%clk 00:00:06]} cxb5
{[%emt 00:00:04] [%clk 00:00:10]} 41. c6 {[%clk 00:00:08]} Nd5 {[%emt 00:00:02]
[%clk 00:00:10]} 42. Kf2 {[%clk 00:00:09]} d1=Q {[%emt 00:00:03] [%clk
00:00:09]} 0-1

[Site "Europe Echecs"]

[Event "Championnat d'Europe de Blitz"]
[Date "2024.12.09"]
[White "Vyval, Volodymyr"]
[Black "Costachi, Mihnea"]
[WhiteElo "2269"]
[BlackElo "2464"]
[Round "5.40"]
[Result "0-1"]
[TimeControl "180+2"]

1. e4 {[%emt 00:11:14] [%clk 00:03:03]} e5 {[%clk 00:03:03]} 2. Nf3 {[%clk
00:03:04]} Nc6 {[%emt 00:00:01] [%clk 00:03:04]} 3. d4 {[%clk 00:03:06]} exd4
{[%emt 00:00:01] [%clk 00:03:05]} 4. Nxd4 {[%clk 00:03:06]} Nf6 {[%emt 00:00:01]
[%clk 00:03:06]} 5. Nxc6 {[%emt 00:00:02] [%clk 00:03:07]} bxc6 {[%clk
00:03:07]} 6. Bd3 {[%emt 00:00:02] [%clk 00:03:07]} d5 {[%emt 00:00:02] [%clk
00:03:08]} 7. O-O {[%emt 00:00:02] [%clk 00:03:07]} dxe4 {[%emt 00:00:16] [%clk
00:02:54]} 8. Qe1 {[%clk 00:03:08]} Be7 {[%emt 00:00:07] [%clk 00:02:50]} 9.
Bxe4 {[%emt 00:00:04] [%clk 00:03:06]} O-O {[%emt 00:00:12] [%clk 00:02:40]} 10.
Bxc6 {[%emt 00:00:18] [%clk 00:02:50]} Rb8 {[%emt 00:00:01] [%clk 00:02:41]} 11.
Qd1 {[%emt 00:00:07] [%clk 00:02:45]} Bf5 {[%emt 00:00:09] [%clk 00:02:35]} 12.
Nc3 {[%emt 00:00:25] [%clk 00:02:22]} Qxd1 {[%emt 00:00:10] [%clk 00:02:27]} 13.
Rxd1 {[%clk 00:02:22]} Bxc2 {[%emt 00:00:02] [%clk 00:02:27]} 14. Re1 {[%emt
00:00:03] [%clk 00:02:21]} Bc5 {[%emt 00:00:18] [%clk 00:02:11]} 15. b3 {[%emt
00:00:08] [%clk 00:02:16]} Rfd8 {[%emt 00:00:32] [%clk 00:01:41]} 16. Be3 {[%emt
00:00:12] [%clk 00:02:05]} Bb4 {[%emt 00:00:14] [%clk 00:01:30]} 17. Nb5 {[%emt
00:00:14] [%clk 00:01:53]} Bxe1 {[%emt 00:00:07] [%clk 00:01:25]} 18. Rxe1
{[%clk 00:01:54]} Be4 {[%emt 00:00:30] [%clk 00:00:57]} 19. Bxe4 {[%emt
00:00:10] [%clk 00:01:46]} Nxe4 {[%emt 00:00:07] [%clk 00:00:51]} 20. Nxa7
{[%emt 00:00:04] [%clk 00:01:44]} Ra8 {[%emt 00:00:37] [%clk 00:00:17]} 21. a4
{[%emt 00:00:04] [%clk 00:01:41]} Nc3 {[%emt 00:00:06] [%clk 00:00:13]} 22. a5
{[%emt 00:00:29] [%clk 00:01:14]} Rdb8 {[%emt 00:00:04] [%clk 00:00:11]} 23. Kf1
{[%emt 00:00:29] [%clk 00:00:47]} Rxb3 {[%emt 00:00:01] [%clk 00:00:12]} 24. Rc1
{[%clk 00:00:49]} Nd5 {[%emt 00:00:07] [%clk 00:00:08]} 25. Bc5 {[%emt 00:00:13]
[%clk 00:00:36]} h5 {[%emt 00:00:03] [%clk 00:00:08]} 26. Rd1 {[%emt 00:00:13]
[%clk 00:00:25]} Nc3 {[%emt 00:00:01] [%clk 00:00:09]} 27. Rc1 {[%emt 00:00:03]
[%clk 00:00:25]} Ne4 {[%emt 00:00:01] [%clk 00:00:09]} 28. Be3 {[%emt 00:00:03]
[%clk 00:00:24]} Rxe3 {[%emt 00:00:03] [%clk 00:00:09]} 29. fxe3 {[%emt
00:00:02] [%clk 00:00:23]} Rxa7 {[%clk 00:00:10]} 30. Ke2 {[%emt 00:00:03] [%clk
00:00:22]} c5 {[%emt 00:00:03] [%clk 00:00:10]} 31. Ra1 {[%emt 00:00:04] [%clk
00:00:20]} c4 {[%emt 00:00:05] [%clk 00:00:07]} 32. Ra4 {[%emt 00:00:02] [%clk
00:00:19]} Nc3+ {[%emt 00:00:02] [%clk 00:00:08]} 0-1

[Site "Europe Echecs"]

[Event "Championnat d'Europe de Blitz"]
[Date "2024.12.09"]
[White "Dragnev, Valentin"]
[Black "Kukk, Sander"]
[WhiteElo "2563"]
[BlackElo "2234"]
[Round "5.41"]
[Result "1-0"]
[TimeControl "180+2"]

1. e4 {[%clk 00:03:03]} g6 {[%emt 00:00:03] [%clk 00:03:03]} 2. d4 {[%clk
00:03:04]} Bg7 {[%clk 00:03:04]} 3. Nf3 {[%clk 00:03:05]} d6 {[%emt 00:00:01]
[%clk 00:03:05]} 4. Be3 {[%clk 00:03:06]} Nf6 {[%emt 00:00:02] [%clk 00:03:05]}
5. Nc3 {[%clk 00:03:07]} O-O {[%emt 00:00:07] [%clk 00:03:00]} 6. Qd2 {[%clk
00:03:08]} Bg4 {[%emt 00:00:07] [%clk 00:02:54]} 7. Ng5 {[%emt 00:00:03] [%clk
00:03:07]} h6 {[%emt 00:00:02] [%clk 00:02:55]} 8. h3 {[%emt 00:00:08] [%clk
00:03:01]} Bd7 {[%clk 00:02:56]} 9. Nf3 {[%emt 00:00:02] [%clk 00:03:01]} Kh7
{[%emt 00:00:01] [%clk 00:02:57]} 10. e5 {[%emt 00:00:09] [%clk 00:02:53]} Ng8
{[%emt 00:00:03] [%clk 00:02:57]} 11. h4 {[%emt 00:00:04] [%clk 00:02:51]} dxe5
{[%emt 00:00:41] [%clk 00:02:18]} 12. h5 {[%emt 00:00:12] [%clk 00:02:41]} exd4
{[%emt 00:00:56] [%clk 00:01:24]} 13. hxg6+ {[%emt 00:00:02] [%clk 00:02:41]}
fxg6 {[%emt 00:00:01] [%clk 00:01:25]} 14. Bxd4 {[%emt 00:00:13] [%clk
00:02:30]} e5 {[%emt 00:00:39] [%clk 00:00:47]} 15. Bc5 {[%emt 00:00:11] [%clk
00:02:22]} Rxf3 {[%emt 00:00:10] [%clk 00:00:39]} 16. gxf3 {[%emt 00:00:03]
[%clk 00:02:20]} Qc8 {[%emt 00:00:12] [%clk 00:00:29]} 17. O-O-O {[%emt
00:00:05] [%clk 00:02:17]} Bf5 {[%emt 00:00:01] [%clk 00:00:30]} 18. Bc4 {[%emt
00:00:10] [%clk 00:02:10]} Nc6 {[%emt 00:00:03] [%clk 00:00:29]} 19. Be3 {[%emt
00:00:08] [%clk 00:02:03]} h5 {[%emt 00:00:05] [%clk 00:00:27]} 20. Ne4 {[%emt
00:00:02] [%clk 00:02:03]} Nf6 {[%emt 00:00:08] [%clk 00:00:21]} 21. Ng5+ {[%emt
00:00:04] [%clk 00:02:01]} Kh8 {[%clk 00:00:23]} 22. Nf7+ {[%emt 00:00:43] [%clk
00:01:21]} Kh7 {[%clk 00:00:24]} 23. Bh6 {[%emt 00:00:01] [%clk 00:01:21]} Qf8
{[%emt 00:00:08] [%clk 00:00:18]} 24. Bxg7 {[%emt 00:00:31] [%clk 00:00:53]}
Kxg7 {[%emt 00:00:03] [%clk 00:00:18]} 25. Qh6+ {[%emt 00:00:03] [%clk
00:00:53]} 1-0

[Site "Europe Echecs"]

[Event "Championnat d'Europe de Blitz"]
[Date "2024.12.09"]
[White "Maier, Christian"]
[Black "Boyer, Mahel"]
[WhiteElo "2235"]
[BlackElo "2526"]
[Round "5.42"]
[Result "0-1"]
[TimeControl "180+2"]

1. e4 {[%emt 00:00:02] [%clk 00:03:03]} Nc6 {[%clk 00:03:03]} 2. d4 {[%emt
00:00:01] [%clk 00:03:03]} d5 {[%emt 00:00:01] [%clk 00:03:05]} 3. e5 {[%emt
00:00:02] [%clk 00:03:02]} Bf5 {[%emt 00:00:01] [%clk 00:03:05]} 4. c3 {[%emt
00:00:03] [%clk 00:03:01]} e6 {[%emt 00:00:01] [%clk 00:03:07]} 5. Ne2 {[%emt
00:00:21] [%clk 00:02:41]} f6 {[%emt 00:00:02] [%clk 00:03:07]} 6. exf6 {[%emt
00:00:17] [%clk 00:02:27]} Nxf6 {[%emt 00:00:03] [%clk 00:03:06]} 7. Ng3 {[%emt
00:00:02] [%clk 00:02:27]} Bd6 {[%emt 00:00:05] [%clk 00:03:03]} 8. Nxf5 {[%emt
00:00:03] [%clk 00:02:26]} exf5 {[%emt 00:00:01] [%clk 00:03:04]} 9. Bd3 {[%emt
00:00:02] [%clk 00:02:25]} Ne4 {[%emt 00:00:03] [%clk 00:03:04]} 10. Nd2 {[%emt
00:00:36] [%clk 00:01:50]} O-O {[%emt 00:00:01] [%clk 00:03:04]} 11. Nf3 {[%emt
00:00:07] [%clk 00:01:46]} Qf6 {[%emt 00:00:01] [%clk 00:03:05]} 12. Qb3 {[%emt
00:00:13] [%clk 00:01:35]} Ne7 {[%emt 00:00:03] [%clk 00:03:04]} 13. h4 {[%emt
00:00:18] [%clk 00:01:19]} h6 {[%emt 00:00:24] [%clk 00:02:42]} 14. Be3 {[%emt
00:00:10] [%clk 00:01:11]} c6 {[%emt 00:00:09] [%clk 00:02:35]} 15. O-O-O {[%emt
00:00:02] [%clk 00:01:11]} b5 {[%emt 00:00:01] [%clk 00:02:36]} 16. g3 {[%emt
00:00:26] [%clk 00:00:47]} a5 {[%emt 00:00:05] [%clk 00:02:32]} 17. Rhf1 {[%emt
00:00:01] [%clk 00:00:47]} Kh8 {[%emt 00:00:19] [%clk 00:02:15]} 18. Bf4 {[%emt
00:00:01] [%clk 00:00:47]} Bxf4+ {[%emt 00:00:12] [%clk 00:02:05]} 19. gxf4
{[%clk 00:00:48]} Ng6 {[%emt 00:00:03] [%clk 00:02:05]} 20. h5 {[%emt 00:00:02]
[%clk 00:00:49]} Nxf4 {[%emt 00:00:01] [%clk 00:02:05]} 21. Ne5 {[%emt 00:00:03]
[%clk 00:00:48]} Nxh5 {[%emt 00:00:25] [%clk 00:01:42]} 22. Nd7 {[%emt 00:00:03]
[%clk 00:00:46]} Qg5+ {[%clk 00:01:43]} 23. Kb1 {[%emt 00:00:03] [%clk
00:00:46]} Nd2+ {[%emt 00:00:06] [%clk 00:01:39]} 0-1

[Site "Europe Echecs"]